DEPARTMENT FAMILY,ENTITY,DATE,EXPENSE TYPE,EXPENSE AREA,SUPPLIER,TRANSACTION NUMBER,AMOUNT,DESCRIPTION
DEPARTMENT OF HEALTH,BLACKPOOL TEACHING HOSPITALS NHS FT,16-Dec-14,COMPUTER MAINTENANCE,ICT,EUROKING MATERNITY SOFTWARE SOLUTIONS LTD,5186814,"27,000.00",ICT MAINTENANCE SERVICES
DEPARTMENT OF HEALTH,BLACKPOOL TEACHING HOSPITALS NHS FT,22-Dec-14,COMPUTER MAINTENANCE,ICT,INTEGRATED MEDICAL SOLUTIONS LTD,5188515,"41,958.00",ICT MAINTENANCE SERVICES
DEPARTMENT OF HEALTH,BLACKPOOL TEACHING HOSPITALS NHS FT,03-Dec-14,COMPUTER NETWORK COSTS,ICT,BT IT SERVICES LTD,5182972,"27,480.26","FURNITURE, OFFICE AND COMPUTER EQUIPMENT"
DEPARTMENT OF HEALTH,BLACKPOOL TEACHING HOSPITALS NHS FT,03-Dec-14,COMPUTER NETWORK COSTS,ICT,BT IT SERVICES LTD,5182973,"26,348.38","FURNITURE, OFFICE AND COMPUTER EQUIPMENT"
DEPARTMENT OF HEALTH,BLACKPOOL TEACHING HOSPITALS NHS FT,19-Dec-14,CONTRACT : PHOTOCOPYING RENTAL AND CHARGES,ICT,CANON (UK) LTD,5188108,"52,650.14",EXTERNAL GENERAL SERVICE CONTRACTS
DEPARTMENT OF HEALTH,BLACKPOOL TEACHING HOSPITALS NHS FT,04-Dec-14,EXTERNAL CONSULTANCY FEES,FINANCE,HUNTER HEALTHCARE RESOURCING LTD,5183363,"32,760.00",EXTERNAL CONTRACT STAFFING AND CONSULTANCY
DEPARTMENT OF HEALTH,BLACKPOOL TEACHING HOSPITALS NHS FT,19-Dec-14,EXTERNAL CONSULTANCY FEES,FINANCE,HUNTER HEALTHCARE RESOURCING LTD,5187946,"31,200.00",EXTERNAL CONTRACT STAFFING AND CONSULTANCY
DEPARTMENT OF HEALTH,BLACKPOOL TEACHING HOSPITALS NHS FT,22-Dec-14,EXTERNAL CONTRACTS : DOMESTICS,SOFT FM,ISS FACILITY SERVICES HEALTHCARE,5188465,"302,282.51",CLEANING SERVICES
DEPARTMENT OF HEALTH,BLACKPOOL TEACHING HOSPITALS NHS FT,11-Dec-14,EXTERNAL CONTRACTS : LAUNDRY,SOFT FM,EXPRESS LAUNDERERS,5185298,"62,000.00",LAUNDRY SERVICES
DEPARTMENT OF HEALTH,BLACKPOOL TEACHING HOSPITALS NHS FT,15-Dec-14,UTILITIES,HARD FM,GAZPROM MARKETING AND TRADING RETAIL LTD,5186365,"126,546.50",GAS 
DEPARTMENT OF HEALTH,BLACKPOOL TEACHING HOSPITALS NHS FT,17-Dec-14,HEART VALVES,CARDIAC,EDWARDS LIFESCIENCES LTD,5187157,"44,326.00",APPLIANCES AND IMPLANTS
DEPARTMENT OF HEALTH,BLACKPOOL TEACHING HOSPITALS NHS FT,05-Dec-14,LABORATORY REAGENTS,PATHOLOGY,BECKMAN COULTER UK,5183769,"30,671.56",LABORATORY EQUIPMENT - PURCHASES
DEPARTMENT OF HEALTH,BLACKPOOL TEACHING HOSPITALS NHS FT,17-Dec-14,MEDICAL AND SURGICAL EQUIPMENT GENERAL,CARDIAC,DOT MEDICAL LTD,5187127,"25,818.00",MEDICAL AND SURGICAL EQUIPMENT PURCHASES
DEPARTMENT OF HEALTH,BLACKPOOL TEACHING HOSPITALS NHS FT,18-Dec-14,MEDICAL AND SURGICAL EQUIPMENT GENERAL,CARDIAC,DOT MEDICAL LTD,5187399,"25,818.00",MEDICAL AND SURGICAL EQUIPMENT PURCHASES
DEPARTMENT OF HEALTH,BLACKPOOL TEACHING HOSPITALS NHS FT,30-Dec-14,MEDICAL AND SURGICAL EQUIPMENT GENERAL,SPECIALIST MEDICINE,CHG-MERIDIAN COMPUTER LEASING UK LTD,5190349,"65,854.85",MEDICAL AND SURGICAL EQUIPMENT LEASE
DEPARTMENT OF HEALTH,BLACKPOOL TEACHING HOSPITALS NHS FT,30-Dec-14,MEDICAL AND SURGICAL EQUIPMENT GENERAL,SPECIALIST MEDICINE,CHG-MERIDIAN COMPUTER LEASING UK LTD,5190350,"65,854.85",MEDICAL AND SURGICAL EQUIPMENT LEASE
DEPARTMENT OF HEALTH,BLACKPOOL TEACHING HOSPITALS NHS FT,03-Dec-14,COMPUTER HARDWARE,ICT,DELL CORPORATION LTD,5183190,"43,145.00","FURNITURE, OFFICE AND COMPUTER EQUIPMENT"
DEPARTMENT OF HEALTH,BLACKPOOL TEACHING HOSPITALS NHS FT,05-Dec-14,NON HEALTHCARE SERVICES FROM OTHER NHS BODIES,SPECIALIST MEDICINE,LANCASHIRE TEACHING HOSPITALS NHS FOUNDATION TRUST,5183563,"51,027.00",BOWEL CANCER SCREENING
DEPARTMENT OF HEALTH,BLACKPOOL TEACHING HOSPITALS NHS FT,19-Dec-14,NON HEALTHCARE SERVICES FROM OTHER NHS BODIES,SPECIALIST MEDICINE,LANCASHIRE TEACHING HOSPITALS NHS FOUNDATION TRUST,5189343,"30,703.00",NON HEALTHCARE SERVICES FROM OTHER NHS BODIES
DEPARTMENT OF HEALTH,BLACKPOOL TEACHING HOSPITALS NHS FT,03-Dec-14,PACEMAKERS,CARDIAC,BOSTON SCIENTIFIC LTD,5183090,"55,875.60",APPLIANCES AND IMPLANTS
DEPARTMENT OF HEALTH,BLACKPOOL TEACHING HOSPITALS NHS FT,03-Dec-14,PACEMAKERS,CARDIAC,MEDTRONIC LTD,5183081,"55,498.78",APPLIANCES AND IMPLANTS
DEPARTMENT OF HEALTH,BLACKPOOL TEACHING HOSPITALS NHS FT,04-Dec-14,PACEMAKERS,CARDIAC,MEDTRONIC LTD,5183417,"84,648.52",APPLIANCES AND IMPLANTS
DEPARTMENT OF HEALTH,BLACKPOOL TEACHING HOSPITALS NHS FT,11-Dec-14,PACEMAKERS,CARDIAC,MEDTRONIC LTD,5185331,"69,299.02",APPLIANCES AND IMPLANTS
DEPARTMENT OF HEALTH,BLACKPOOL TEACHING HOSPITALS NHS FT,19-Dec-14,PACEMAKERS,CARDIAC,MEDTRONIC LTD,5187981,"38,124.00",APPLIANCES AND IMPLANTS
DEPARTMENT OF HEALTH,BLACKPOOL TEACHING HOSPITALS NHS FT,16-Dec-14,TELEPHONE RENTAL AND CALL CHARGES,ICT,BT TELEPHONE PAYMENT CENTRE,5186410,"81,080.14",TELEPHONE RENTAL AND CALL CHARGES
DEPARTMENT OF HEALTH,BLACKPOOL TEACHING HOSPITALS NHS FT,03-Dec-14,X-RAY EQUIPMENT : LEASES,RADIOLOGY,AGFA-GEVAERT LTD,5183186,"53,330.40",X-RAY EQUIPMENT : LEASES
DEPARTMENT OF HEALTH,BLACKPOOL TEACHING HOSPITALS NHS FT,03-Dec-14,X-RAY EQUIPMENT : LEASES,RADIOLOGY,AGFA-GEVAERT LTD,5183187,"145,200.00",X-RAY EQUIPMENT : LEASES
DEPARTMENT OF HEALTH,BLACKPOOL TEACHING HOSPITALS NHS FT,29-Dec-14,BLOOD PRODUCTS,PATHOLOGY,NHS BLOOD AND TRANSPLANT,5189630,"200,417.25",BLOOD PRODUCTS
DEPARTMENT OF HEALTH,BLACKPOOL TEACHING HOSPITALS NHS FT,19-Dec-14,PHARMACY PRESCRIPTIONS,PHARMACY DRUGS INVENTORY,NHS BSA PRESCRIPTION PRICING DIVISION,5187638,"45,832.71",SERVICES RECEIVED FROM N.H.S. BODIES
DEPARTMENT OF HEALTH,BLACKPOOL TEACHING HOSPITALS NHS FT,15-Dec-14,NON HEALTHCARE SERVICES FROM OTHER NHS BODIES,DIVISIONAL MANAGEMENT,NHS PROPERTY SERVICES LTD,5186068,"86,658.79",PROPERTY RENTAL
DEPARTMENT OF HEALTH,BLACKPOOL TEACHING HOSPITALS NHS FT,15-Dec-14,NON HEALTHCARE SERVICES FROM OTHER NHS BODIES,DIVISIONAL MANAGEMENT,NHS PROPERTY SERVICES LTD,5186069,"53,293.56",PROPERTY RENTAL
DEPARTMENT OF HEALTH,BLACKPOOL TEACHING HOSPITALS NHS FT,15-Dec-14,NON HEALTHCARE SERVICES FROM OTHER NHS BODIES,DIVISIONAL MANAGEMENT,NHS PROPERTY SERVICES LTD,5186070,"21,667.23",PROPERTY RENTAL
DEPARTMENT OF HEALTH,BLACKPOOL TEACHING HOSPITALS NHS FT,15-Dec-14,NON HEALTHCARE SERVICES FROM OTHER NHS BODIES,DIVISIONAL MANAGEMENT,NHS PROPERTY SERVICES LTD,5186071,"54,365.23",PROPERTY RENTAL
DEPARTMENT OF HEALTH,BLACKPOOL TEACHING HOSPITALS NHS FT,15-Dec-14,NON HEALTHCARE SERVICES FROM OTHER NHS BODIES,DIVISIONAL MANAGEMENT,NHS PROPERTY SERVICES LTD,5186427,"64,082.00",PROPERTY RENTAL
DEPARTMENT OF HEALTH,BLACKPOOL TEACHING HOSPITALS NHS FT,29-Dec-14,X-RAY EQUIPMENT : MAINTENANCE,EBME,NHS SUPPLY CHAIN,5189859,"77,222.18",X-RAY EQUIPMENT : MAINTENANCE
DEPARTMENT OF HEALTH,BLACKPOOL TEACHING HOSPITALS NHS FT,05-Dec-14,MEDICAL AND SURGICAL EQUIPMENT GENERAL,LONG TERM CONDITIONS & CRITICAL CARE,RESMED (U K) LTD,5183746,"49,248.00",MEDICAL AND SURGICAL EQUIPMENT PURCHASES
DEPARTMENT OF HEALTH,BLACKPOOL TEACHING HOSPITALS NHS FT,03-Dec-14,LABORATORY REAGENTS,PATHOLOGY,SIEMENS HEALTHCARE DIAGNOSTICS LTD,5182980,"67,662.26",LABORATORY EQUIPMENT - PURCHASES
DEPARTMENT OF HEALTH,BLACKPOOL TEACHING HOSPITALS NHS FT,01-Dec-14,HEALTHCARE FROM INDEPENDENT SECTOR,SPECIALIST SURGERY,SPIRAL HEALTH CIC,5183835,"125,916.67",HEALTHCARE FROM INDEPENDENT SECTOR
DEPARTMENT OF HEALTH,BLACKPOOL TEACHING HOSPITALS NHS FT,01-Dec-14,HEALTHCARE FROM INDEPENDENT SECTOR,NURSE LED UNIT,SPIRAL HEALTH CIC,5183836,"252,863.97",HEALTHCARE FROM INDEPENDENT SECTOR
DEPARTMENT OF HEALTH,BLACKPOOL TEACHING HOSPITALS NHS FT,29-Dec-14,HEALTHCARE FROM INDEPENDENT SECTOR,NURSE LED UNIT,SPIRAL HEALTH CIC,5189938,"252,863.97",HEALTHCARE FROM INDEPENDENT SECTOR
DEPARTMENT OF HEALTH,BLACKPOOL TEACHING HOSPITALS NHS FT,29-Dec-14,HEALTHCARE FROM INDEPENDENT SECTOR,SPECIALIST SURGERY,SPIRAL HEALTH CIC,5189939,"125,916.67",HEALTHCARE FROM INDEPENDENT SECTOR
DEPARTMENT OF HEALTH,BLACKPOOL TEACHING HOSPITALS NHS FT,16-Dec-14,MEDICAL AND SURGICAL EQUIPMENT GENERAL,UCD DIVISION,STRYKER UK LTD,5186839,"39,778.70",MEDICAL AND SURGICAL EQUIPMENT GENERAL
DEPARTMENT OF HEALTH,BLACKPOOL TEACHING HOSPITALS NHS FT,01-Dec-14,CAPITAL PURCHASES,CAPITAL PURCHASES,CARESTREAM DENTAL LTD,5180379,"4,214.64",CAPITAL PURCHASES
DEPARTMENT OF HEALTH,BLACKPOOL TEACHING HOSPITALS NHS FT,03-Dec-14,CAPITAL PURCHASES,CAPITAL PURCHASES,WARDEN CONSTRUCTION LTD,5182928,"147,600.00",CAPITAL PURCHASES
DEPARTMENT OF HEALTH,BLACKPOOL TEACHING HOSPITALS NHS FT,19-Dec-14,CAPITAL PURCHASES,CAPITAL PURCHASES,WARDEN CONSTRUCTION LTD,5187747,"111,737.65",CAPITAL PURCHASES
DEPARTMENT OF HEALTH,BLACKPOOL TEACHING HOSPITALS NHS FT,03-Dec-14,CAPITAL PURCHASES,CAPITAL PURCHASES,WARDEN CONSTRUCTION LTD,5182929,"54,706.82",CAPITAL PURCHASES
DEPARTMENT OF HEALTH,BLACKPOOL TEACHING HOSPITALS NHS FT,01-Dec-14,CAPITAL PURCHASES,CAPITAL PURCHASES,HARRISON J E BUILDERS,5182345,"5,203.58",CAPITAL PURCHASES
DEPARTMENT OF HEALTH,BLACKPOOL TEACHING HOSPITALS NHS FT,19-Dec-14,CAPITAL PURCHASES,CAPITAL PURCHASES,HARRISON J E BUILDERS,5187746,"43,328.36",CAPITAL PURCHASES
DEPARTMENT OF HEALTH,BLACKPOOL TEACHING HOSPITALS NHS FT,17-Dec-14,CAPITAL PURCHASES,CAPITAL PURCHASES,HOLOGIC (UK) LTD,5187095,"29,283.60",CAPITAL PURCHASES
DEPARTMENT OF HEALTH,BLACKPOOL TEACHING HOSPITALS NHS FT,08-Dec-14,PHARMACY DRUGS INVENTORY,PHARMACY DRUGS INVENTORY,NOVARTIS PHARMACEUTICALS UK LTD,5183986,"52,501.52",PHARMACY STORES 
DEPARTMENT OF HEALTH,BLACKPOOL TEACHING HOSPITALS NHS FT,08-Dec-14,PHARMACY DRUGS INVENTORY,PHARMACY DRUGS INVENTORY,ROCHE PRODUCTS LTD,5183993,"29,240.98",PHARMACY STORES 
DEPARTMENT OF HEALTH,BLACKPOOL TEACHING HOSPITALS NHS FT,08-Dec-14,PHARMACY DRUGS INVENTORY,PHARMACY DRUGS INVENTORY,NOVARTIS PHARMACEUTICALS UK LTD,5184089,"70,392.48",PHARMACY STORES 
DEPARTMENT OF HEALTH,BLACKPOOL TEACHING HOSPITALS NHS FT,08-Dec-14,PHARMACY DRUGS INVENTORY,PHARMACY DRUGS INVENTORY,ROCHE PRODUCTS LTD,5184095,"34,496.63",PHARMACY STORES 
DEPARTMENT OF HEALTH,BLACKPOOL TEACHING HOSPITALS NHS FT,09-Dec-14,PHARMACY DRUGS INVENTORY,PHARMACY DRUGS INVENTORY,ROCHE PRODUCTS LTD,5184746,"41,705.20",PHARMACY STORES 
DEPARTMENT OF HEALTH,BLACKPOOL TEACHING HOSPITALS NHS FT,15-Dec-14,PHARMACY DRUGS INVENTORY,PHARMACY DRUGS INVENTORY,LLOYDS PHARMACY LTD,5186200,"362,914.68",PHARMACY STORES 
DEPARTMENT OF HEALTH,BLACKPOOL TEACHING HOSPITALS NHS FT,15-Dec-14,PHARMACY DRUGS INVENTORY,PHARMACY DRUGS INVENTORY,ROCHE PRODUCTS LTD,5186213,"30,681.82",PHARMACY STORES 
DEPARTMENT OF HEALTH,BLACKPOOL TEACHING HOSPITALS NHS FT,17-Dec-14,PHARMACY DRUGS INVENTORY,PHARMACY DRUGS INVENTORY,BAYER PLC,5187202,"30,415.20",PHARMACY STORES 
DEPARTMENT OF HEALTH,BLACKPOOL TEACHING HOSPITALS NHS FT,18-Dec-14,PHARMACY DRUGS INVENTORY,PHARMACY DRUGS INVENTORY,NOVARTIS PHARMACEUTICALS UK LTD,5187581,"45,198.36",PHARMACY STORES 
DEPARTMENT OF HEALTH,BLACKPOOL TEACHING HOSPITALS NHS FT,19-Dec-14,PHARMACY DRUGS INVENTORY,PHARMACY DRUGS INVENTORY,NOVARTIS PHARMACEUTICALS UK LTD,5188335,"53,469.06",PHARMACY STORES 
DEPARTMENT OF HEALTH,BLACKPOOL TEACHING HOSPITALS NHS FT,23-Dec-14,PHARMACY DRUGS INVENTORY,PHARMACY DRUGS INVENTORY,BAYER PLC,5188692,"26,220.00",PHARMACY STORES 
DEPARTMENT OF HEALTH,BLACKPOOL TEACHING HOSPITALS NHS FT,30-Dec-14,PHARMACY DRUGS INVENTORY,PHARMACY DRUGS INVENTORY,ROCHE PRODUCTS LTD,5190654,"52,314.44",PHARMACY STORES 
DEPARTMENT OF HEALTH,BLACKPOOL TEACHING HOSPITALS NHS FT,30-Dec-14,PHARMACY DRUGS INVENTORY,PHARMACY DRUGS INVENTORY,ROCHE PRODUCTS LTD,5190658,"120,090.17",PHARMACY STORES 
DEPARTMENT OF HEALTH,BLACKPOOL TEACHING HOSPITALS NHS FT,01-Dec-14,INTER NHS MEDICAL STAFF RECHARGES,MULTI-DIVISON,PENNINE ACUTE HOSPITALS NHS TRUST,5183837,"100,000.00",INTER NHS MEDICAL STAFF RECHARGES
DEPARTMENT OF HEALTH,BLACKPOOL TEACHING HOSPITALS NHS FT,01-Dec-14,INTER NHS MEDICAL STAFF RECHARGES,MULTI-DIVISON,PENNINE ACUTE HOSPITALS NHS TRUST,5183838,"550,000.00",INTER NHS MEDICAL STAFF RECHARGES
DEPARTMENT OF HEALTH,BLACKPOOL TEACHING HOSPITALS NHS FT,16-Dec-14,INTER NHS MEDICAL STAFF RECHARGES,MULTI-DIVISON,PENNINE ACUTE HOSPITALS NHS TRUST,5186367,"29,411.73",INTER NHS MEDICAL STAFF RECHARGES
DEPARTMENT OF HEALTH,BLACKPOOL TEACHING HOSPITALS NHS FT,05-Dec-14,NHS SUPPLY CHAIN CATALOGUE ITEMS,MULTI-DIVISIONAL CHARGE,NHS SUPPLY CHAIN,5184797,"120,432.41",NHS SUPPLY CHAIN CATALOGUE ITEMS
DEPARTMENT OF HEALTH,BLACKPOOL TEACHING HOSPITALS NHS FT,15-Dec-14,NHS SUPPLY CHAIN CATALOGUE ITEMS,MULTI-DIVISIONAL CHARGE,NHS SUPPLY CHAIN,5186408,"135,711.03",NHS SUPPLY CHAIN CATALOGUE ITEMS
DEPARTMENT OF HEALTH,BLACKPOOL TEACHING HOSPITALS NHS FT,29-Dec-14,NHS SUPPLY CHAIN CATALOGUE ITEMS,MULTI-DIVISIONAL CHARGE,NHS SUPPLY CHAIN,5189633,"178,912.54",NHS SUPPLY CHAIN CATALOGUE ITEMS
